bitfinex/quotes_ETHUSD_20251119
["timestamp","ask_amount","ask_price","bid_price","bid_amount"]
[1763573333482,0.002,2939.1,2938.7,1.31249664]
[1763573333920,0.002,2939.1,2938.9,6.80526726]
[1763573334122,0.002,2939.1,2939.0,0.72784673]
[1763573334321,0.1893,2941.0,2939.1,0.405504]
[1763573334506,0.4657,2940.9,2939.3,0.405504]
[1763573334704,0.4657,2940.9,2939.5,0.405504]
[1763573335322,0.4657,2940.9,2939.6,0.4732]
[1763573336120,0.4657,2940.9,2939.7,3.40170765]
[1763573336414,0.4657,2940.9,2939.8,1.31449143]
[1763573336616,0.4657,2940.9,2939.3,3.40217058]
[1763573336617,0.1259,2939.8,2939.3,3.40217058]
[1763573336815,0.1259,2939.8,2939.4,0.90699264]
[1763573337016,0.4657,2940.5,2939.4,0.90699264]
[1763573337719,0.4657,2940.5,2939.3,3.40217058]
[1763573337893,0.4657,2940.5,2939.0,10.20755358]
[1763573338285,0.4657,2940.5,2939.1,1.09609264]
[1763573338518,0.4657,2940.5,2939.1,1.79367107]
[1763573339923,0.4657,2940.5,2939.3,0.90699264]
[1763573340636,0.4657,2940.9,2939.4,0.4732]
[1763573340930,0.4657,2940.9,2939.3,0.90699264]
[1763573341084,0.4657,2940.9,2939.4,0.77115653]
[1763573341486,0.4657,2940.9,2939.4,1.24435653]
[1763573342200,0.4657,2940.9,2939.6,0.90699264]
[1763573342624,0.405504,2940.8,2939.4,0.77115653]
[1763573342951,0.1259,2939.7,2939.3,0.90699264]
[1763573343293,0.1259,2939.7,2939.2,6.80457266]
[1763573343530,0.1259,2939.7,2939.3,0.90699264]
[1763573344088,0.8892865,2942.7,2939.7,0.405504]
[1763573344329,0.4657,2941.9,2939.8,0.405504]
[1763573344498,0.4657,2941.9,2940.1,1.31249664]
[1763573344698,0.4657,2941.9,2940.2,0.4732]
[1763573345603,0.4657,2941.9,2939.7,0.90699264]
[1763573345836,0.405504,2941.6,2939.2,6.80457266]
[1763573346133,0.405504,2941.6,2939.5,0.90699264]
[1763573346330,1.31249664,2941.2,2939.4,3.40205484]
[1763573346634,0.405504,2941.0,2939.3,4.17102001]
[1763573346835,0.405504,2941.0,2939.4,0.90699264]
[1763573346990,0.405504,2940.8,2939.4,0.90699264]
[1763573347223,0.5916,2940.9,2939.4,0.90699264]
[1763573347224,0.5916,2940.9,2939.5,0.87944306]
[1763573347424,0.4657,2940.8,2939.5,0.87944306]
[1763573348025,0.4657,2940.8,2939.5,0.40624306]
[1763573348223,0.4657,2940.8,2939.7,0.90699264]
[1763573348745,0.4657,2940.8,2939.5,1.3132357]
[1763573348958,0.4657,2940.8,2939.5,7.71084377]
[1763573349323,0.405504,2940.7,2939.5,7.71084377]
[1763573349858,0.4508,2940.6,2939.5,7.71084377]
[1763573350073,0.4508,2940.7,2939.6,1.38789264]
[1763573350225,0.4508,2940.7,2939.8,0.90699264]
[1763573350418,0.4508,2940.7,2939.9,0.77104079]
[1763573350618,0.1279,2940.9,2939.9,1.25194079]
[1763573350820,0.002,2940.9,2940.0,0.4809]
[1763573351233,0.002,2940.9,2940.2,0.405504]
[1763573351455,0.002,2940.9,2940.0,0.4809]
[1763573351456,0.002,2940.9,2940.3,0.4809]
[1763573351842,0.002,2940.9,2939.9,1.25194079]
[1763573352042,0.1321,2940.9,2940.0,0.21589334]
[1763573352259,0.1321,2940.9,2940.2,0.90699264]
[1763573352561,0.5829,2940.9,2940.1,3.40124485]
[1763573352864,0.4508,2940.8,2940.1,6.8024897]
[1763573353223,0.4508,2940.8,2940.1,3.40124485]
[1763573353536,0.4508,2940.8,2939.2,6.80457266]
[1763573353537,0.405504,2940.7,2939.2,6.80457266]
[1763573353743,0.1851,2939.2,2938.5,6.80619362]
[1763573354251,0.1851,2939.5,2938.5,10.69019043]
[1763573354785,0.1851,2939.5,2938.5,10.20929043]
[1763573354953,0.1851,2939.5,2938.6,0.4809]
[1763573355137,0.1851,2939.9,2938.7,0.405504]
[1763573355462,0.1851,2939.9,2938.6,1.38789264]
[1763573355626,0.4508,2940.3,2938.7,0.405504]
[1763573355826,0.4508,2940.3,2938.7,0.886404]
[1763573356225,0.4508,2940.3,2939.0,0.90699264]
[1763573356433,0.4508,2940.3,2939.1,0.77122599]
[1763573356634,0.4508,2940.3,2939.1,0.96452599]
[1763573356835,0.1321,2940.9,2939.2,0.886404]
[1763573356836,0.4508,2940.6,2939.2,0.886404]
[1763573357037,0.4508,2940.6,2939.2,0.4809]
[1763573357432,0.4508,2940.6,2939.1,0.96452599]
[1763573357433,0.405504,2940.5,2939.1,0.77122599]
[1763573357869,0.405504,2940.3,2939.1,0.77122599]
[1763573358035,0.405504,2940.3,2938.9,6.80526726]
[1763573358230,0.4508,2940.2,2938.6,3.40298101]
[1763573358435,0.4508,2940.7,2938.7,1.31249664]
[1763573358661,0.4508,2940.7,2938.9,0.405504]
[1763573359192,0.4508,2940.7,2939.0,0.4809]
[1763573359694,0.4508,2940.7,2939.1,0.1933]
[1763573360288,0.4508,2940.7,2939.2,10.20685899]
[1763573360490,0.4508,2940.7,2939.3,0.90699264]
[1763573360957,0.4508,2940.7,2939.4,0.03402054]
[1763573361292,0.4508,2940.7,2939.3,1.38789264]
[1763573361590,0.002,2940.9,2939.4,0.92042454]
[1763573361796,0.002,2940.9,2939.4,0.886404]
[1763573361968,0.002,2940.9,2939.3,9.21617805]
[1763573361969,0.002,2940.9,2939.6,0.405504]
[1763573362366,0.002,2940.9,2939.9,0.90699264]
[1763573362569,0.1362,2940.9,2939.9,0.90699264]
[1763573362967,0.38092241,2940.8,2939.9,0.90699264]
[1763573363300,0.38092241,2940.8,2939.0,3.52045195]
[1763573363301,0.405504,2940.7,2938.7,3.40286521]
[1763573363497,0.1152,2939.9,2938.8,0.38837652]
[1763573364469,0.1152,2939.9,2938.9,6.80526726]
[1763573365075,0.1152,2939.9,2939.0,0.90699264]
[1763573366457,0.1152,2939.9,2938.8,0.38837652]
[1763573366458,0.5708,2939.9,2938.8,0.38837652]
[1763573366661,0.5708,2939.9,2938.5,10.20929043]
[1763573366898,0.4556,2939.8,2939.5,0.001]
[1763573368503,0.1152,2939.9,2939.5,0.001]
[1763573368715,0.4556,2940.5,2939.5,0.4699]
[1763573368917,0.4556,2940.5,2939.5,0.001]
[1763573370779,0.4556,2940.5,2939.6,0.68051097]
[1763573372515,0.405504,2940.4,2939.6,0.68051097]
[1763573372807,0.405504,2940.4,2939.6,4.08227446]
[1763573372972,0.4556,2940.3,2939.6,4.08227446]
[1763573373174,0.3919,2939.7,2939.6,0.68051097]
[1763573373415,0.1062,2939.7,2939.5,3.40288737]
[1763573373637,0.1062,2939.9,2939.5,6.80482647]
[1763573373832,0.4556,2940.5,2939.6,0.03401823]
[1763573373990,0.4556,2940.5,2939.5,6.80482647]
[1763573374596,0.4556,2940.5,2939.5,0.001]
[1763573375623,0.405504,2940.4,2939.5,0.001]
[1763573375894,0.1062,2939.6,2939.5,0.001]
[1763573376728,0.3919,2939.6,2939.5,0.001]
[1763573377030,0.4556,2940.6,2939.5,0.9645]
[1763573377230,0.405504,2940.5,2939.5,0.001]
[1763573377592,0.4556,2940.4,2939.5,0.001]
[1763573378233,0.4593,2940.8,2939.5,0.4637]
[1763573378529,0.405504,2940.7,2939.7,0.90699264]
[1763573378834,0.4593,2940.8,2939.7,1.72442658]
[1763573379036,0.4593,2940.7,2939.7,1.72442658]
[1763573380494,0.4593,2940.7,2939.8,0.90699264]
[1763573380698,0.4593,2940.7,2939.7,0.90699264]
[1763573381653,0.405504,2940.6,2939.7,0.90699264]
[1763573381849,0.405504,2940.6,2939.7,1.67815658]
[1763573382018,0.4593,2940.5,2939.7,1.67815658]
[1763573382215,0.1362,2940.9,2939.8,0.03401591]
[1763573382413,0.1362,2940.9,2939.8,0.4627]
[1763573382619,0.1362,2940.9,2940.0,0.90699264]
[1763573382852,0.1362,2940.9,2940.1,0.40397469]
[1763573383347,0.5955,2940.9,2940.1,0.40397469]
[1763573384325,0.1362,2940.9,2940.1,0.40397469]
[1763573384562,0.4593,2940.8,2940.0,3.40135717]
[1763573384763,0.4593,2940.8,2939.7,0.90699264]
[1763573385668,0.4593,2940.8,2939.7,1.36969264]
[1763573385858,0.4593,2940.8,2939.8,0.4627]
[1763573386239,0.002,2940.9,2939.8,0.4627]
[1763573386852,0.4593,2940.8,2940.0,0.90699264]
[1763573387170,0.4593,2940.8,2940.1,0.77099451]
[1763573388438,8.1730046,2940.2,2939.5,0.001]
[1763573388768,0.4593,2940.4,2939.5,6.80487076]
[1763573388945,0.866804,2940.9,2939.6,0.4627]
[1763573389471,0.405504,2940.7,2939.6,0.4627]
[1763573390033,0.864804,2940.7,2939.5,6.80487076]
[1763573390235,0.864804,2940.7,2939.6,0.4627]
[1763573390973,0.864804,2940.7,2939.7,6.8034153]
[1763573391356,0.405504,2940.7,2939.7,6.8034153]
[1763573391562,0.4593,2940.6,2939.7,3.40170765]
[1763573391761,0.4593,2940.6,2939.7,6.8034153]
[1763573394673,0.002,2940.9,2940.5,0.4998]
[1763573395031,0.1498,2940.9,2940.1,0.4627]
[1763573395232,0.1498,2940.9,2939.8,0.90699264]
[1763573395432,0.4593,2940.8,2939.9,0.77104079]
[1763573395668,0.1498,2940.9,2939.9,0.77104079]
[1763573395669,0.1498,2940.9,2940.0,6.80272108]
[1763573395847,0.1498,2940.9,2940.0,3.40136054]
[1763573396192,0.1498,2940.9,2940.0,6.80272108]
[1763573396510,0.6091,2940.9,2940.0,6.80272108]
[1763573396690,0.6091,2940.9,2940.1,0.40409784]
[1763573396872,0.4593,2940.8,2940.1,0.40409784]
[1763573397906,0.2685,2940.2,2939.6,6.80364674]
[1763573398409,0.2685,2940.2,2939.5,0.4637]
[1763573398410,0.2685,2940.2,2939.5,0.001]
[1763573398762,0.4574,2940.1,2939.5,3.40290914]
[1763573398969,0.4574,2940.1,2939.5,0.001]
[1763573399270,0.4574,2940.1,2939.5,3.40292668]
[1763573399596,0.4574,2940.1,2939.5,0.68160839]
[1763573399805,0.4574,2940.1,2939.5,0.001]
[1763573400164,0.3773,2939.6,2939.5,0.001]
[1763573400599,0.8321,2939.6,2939.5,0.001]
[1763573400902,1.237604,2939.6,2939.5,0.001]
[1763573401273,0.405504,2939.5,2939.0,0.001]
[1763573401476,0.405504,2939.5,2938.1,0.001]
[1763573401477,1.31249664,2939.0,2938.1,0.001]
[1763573401683,0.1824,2938.5,2938.1,0.001]
[1763573401881,0.587904,2938.5,2938.1,0.001]
[1763573402108,1.047204,2938.5,2938.1,0.001]
[1763573402419,0.405504,2938.0,2937.8,0.001]
[1763573402606,9.24940124,2937.6,2937.5,0.001]
[1763573402764,0.90699264,2936.9,2935.6,0.1865]
[1763573402970,0.88438972,2936.8,2935.6,0.1865]
[1763573403169,0.4593,2936.7,2935.6,0.1865]
[1763573403365,0.4593,2936.7,2935.3,3.40680679]
[1763573403366,1.31249664,2936.6,2935.3,3.40680679]
[1763573403728,0.405504,2936.6,2936.0,0.1865]
[1763573404047,0.1805,2937.4,2936.5,0.1865]
[1763573404406,0.405504,2937.2,2936.3,0.1865]
[1763573404843,0.405504,2937.2,2936.0,0.1865]
[1763573404844,0.405504,2937.0,2936.0,0.1865]
[1763573405229,0.405504,2936.9,2936.0,0.1865]
[1763573405429,0.405504,2936.9,2935.6,1.36969264]
[1763573405632,0.405504,2936.9,2935.8,0.1865]
[1763573405949,0.405504,2936.9,2935.9,3.40611056]
[1763573406244,0.405504,2937.3,2936.0,0.03405994]
[1763573406442,0.1805,2937.4,2936.0,1.36969264]
[1763573406747,0.4593,2937.3,2936.1,0.1865]
[1763573406922,0.90699264,2936.8,2935.5,0.1865]
[1763573407124,0.405504,2936.7,2935.5,0.6492]
[1763573407318,0.4593,2937.3,2935.6,0.4627]
[1763573407319,0.405504,2937.0,2935.6,0.4627]
[1763573407721,0.405504,2936.8,2935.6,0.4627]
[1763573407932,0.405504,2936.8,2935.7,6.8126852]
[1763573408132,0.405504,2936.8,2935.8,0.72753852]
[1763573408341,0.405504,2936.6,2935.8,0.72753852]
[1763573408655,0.405504,2936.6,2935.4,3.40658552]
[1763573408656,0.089,2935.9,2935.1,3.40700798]
[1763573408835,0.405504,2936.4,2935.2,0.4882]
[1763573409210,0.883904,2936.4,2935.2,0.4882]
[1763573409415,0.883904,2936.4,2935.0,3.59363933]
[1763573409617,0.405504,2936.2,2935.0,0.1865]
[1763573409814,0.90699264,2936.1,2935.0,7.00079427]
[1763573410223,0.4784,2936.2,2935.0,7.00079427]
[1763573410441,0.4784,2936.2,2935.1,0.4882]
[1763573410654,0.4784,2936.2,2935.1,1.39519264]
[1763573410854,0.4784,2936.2,2935.2,0.83959869]
[1763573411162,0.0649,2936.9,2936.1,0.194]
[1763573412512,0.5433,2936.9,2935.8,0.90699264]
[1763573412928,0.405504,2936.8,2935.7,0.90699264]
[1763573413126,0.405504,2936.8,2935.8,0.33553994]
[1763573413962,0.883904,2936.8,2935.8,0.33553994]
[1763573414170,0.4784,2936.7,2935.8,3.40620682]
[1763573414337,0.405504,2936.6,2935.7,0.4882]
[1763573414667,0.4784,2936.7,2935.8,0.90699264]
[1763573414828,0.405504,2936.8,2935.8,0.90699264]
[1763573415025,0.405504,2936.8,2935.7,7.30077554]
[1763573415229,0.405504,2936.8,2935.8,1.21827755]
[1763573415437,0.405504,2936.8,2935.5,3.40655451]
[1763573415438,0.4784,2936.7,2935.5,3.40655451]
[1763573415641,0.405504,2936.4,2935.1,3.40703894]
[1763573415865,1.31249664,2936.4,2935.0,3.59365199]
[1763573416038,1.79089664,2936.4,2935.1,1.39519264]
[1763573416240,1.79089664,2936.4,2935.2,1.32779997]
[1763573416241,0.883904,2936.4,2935.2,1.32779997]
[1763573416432,0.405504,2936.7,2935.2,1.32779997]
[1763573416769,0.4784,2936.8,2935.3,0.4882]
[1763573417541,1.31249664,2936.4,2935.2,0.83959997]
[1763573417742,1.31249664,2936.4,2935.0,7.48900701]
[1763573417951,1.31249664,2936.4,2935.2,6.81384572]
[1763573417952,0.4784,2936.3,2935.2,6.81384572]
[1763573418465,0.405504,2936.2,2935.2,6.81384572]
[1763573418784,0.405504,2936.6,2935.3,1.39519264]
[1763573418986,0.4784,2936.7,2935.3,1.39519264]
[1763573419173,0.4784,2936.7,2935.4,0.4882]
[1763573419486,0.405504,2936.4,2935.2,3.89512286]
[1763573419788,0.405504,2936.0,2935.1,0.194]
[1763573420154,0.405504,2935.8,2934.8,3.89553581]
[1763573420349,0.405504,2935.8,2934.5,0.194]
[1763573420350,0.405504,2935.6,2934.5,0.194]
[1763573420579,1.28029526,2935.6,2934.5,0.194]
[1763573420782,1.28029526,2935.6,2934.4,0.001]
[1763573420783,0.0963,2934.7,2934.4,0.001]
[1763573420954,0.501804,2934.7,2934.4,0.001]
[1763573421149,0.980204,2934.7,2934.4,0.001]
[1763573423151,0.980204,2934.7,2934.1,0.001]
[1763573423152,0.883904,2934.6,2934.1,0.001]
[1763573423394,0.501804,2934.7,2934.1,0.001]
[1763573423395,9.24940124,2934.2,2934.1,0.001]
[1763573423551,10.17434136,2934.2,2934.1,0.001]
[1763573423750,10.65274136,2934.2,2934.1,0.001]
[1763573424395,1.31249664,2934.1,2932.6,3.60389313]
[1763573424567,0.405504,2934.1,2932.6,10.42377991]
[1763573424891,0.405504,2934.3,2932.7,1.39169264]
[1763573425109,0.0963,2934.7,2932.8,0.4847]
[1763573425388,0.1837,2935.1,2934.2,0.1923]
[1763573425592,0.4862,2935.0,2933.0,0.1923]
[1763573425789,0.90699264,2934.8,2933.1,0.4847]
[1763573426095,0.90699264,2934.8,2933.3,0.90699264]
[1763573426275,1.09069264,2935.1,2933.3,0.90699264]
[1763573426596,1.57689264,2935.1,2933.4,0.4847]
[1763573427090,0.405504,2935.0,2933.4,0.4847]
[1763573427294,0.891704,2935.0,2933.4,0.4847]
[1763573427651,0.4862,2934.9,2933.4,0.4847]
[1763573427857,0.405504,2934.8,2933.4,0.4847]
[1763573428194,0.405504,2934.8,2933.5,6.81779444]
[1763573428694,0.405504,2935.0,2933.6,0.4847]
[1763573429968,0.1837,2935.1,2933.7,0.405504]
[1763573430205,0.1837,2935.1,2933.7,13.63465928]
[1763573430415,0.4862,2935.9,2935.0,0.1923]
[1763573430629,0.0963,2936.1,2935.0,0.677]
[1763573430908,0.0963,2936.1,2934.9,0.4847]
[1763573430909,1.00329264,2936.1,2934.9,0.4847]
[1763573431206,0.4862,2936.0,2934.8,0.1923]
[1763573431509,7.9369046,2936.8,2934.8,0.677]
[1763573431664,0.1805,2937.4,2936.1,0.1923]
[1763573431869,8.4231046,2937.3,2935.0,0.1923]
[1763573432067,0.90699264,2936.8,2935.3,0.90699264]
[1763573432471,0.98639264,2936.8,2935.4,0.4847]
[1763573432803,0.4862,2936.7,2935.4,0.4847]
[1763573433170,0.0794,2936.9,2935.4,0.4847]
[1763573433680,1.47259264,2936.9,2935.4,0.4847]
[1763573433917,0.405504,2936.4,2935.2,0.90699264]
[1763573434115,0.405504,2936.4,2935.3,3.40680679]
[1763573434332,0.891704,2936.4,2935.2,4.31389759]
[1763573434514,0.4862,2936.5,2935.3,0.4847]
[1763573434840,0.405504,2936.4,2935.3,0.4847]
[1763573435051,0.58537366,2936.4,2935.3,0.4847]
[1763573435256,0.4862,2937.3,2936.3,0.1923]
[1763573435601,0.90699264,2937.2,2935.8,0.4847]
[1763573435821,0.90699264,2936.8,2935.4,0.4847]
[1763573436242,0.90699264,2936.8,2935.5,6.81314936]
[1763573436622,0.90699264,2936.8,2935.6,0.4847]
[1763573436821,1.84794236,2936.8,2935.6,0.4847]
[1763573437849,0.94094972,2936.8,2935.6,0.4847]
[1763573438067,0.0794,2936.9,2935.6,0.4847]
[1763573438268,0.1805,2937.4,2936.8,0.1952]
[1763573438491,0.1805,2937.4,2935.8,0.90699264]
[1763573438681,0.4969,2937.3,2935.9,0.452]
[1763573440038,0.405504,2937.2,2935.9,0.452]
[1763573440285,0.002,2936.8,2935.9,3.85804992]
[1763573440751,0.0784,2936.7,2935.6,3.85845864]
[1763573440940,0.002,2936.8,2935.6,7.26491728]
[1763573441136,0.002,2936.8,2935.7,0.452]
[1763573441351,0.002,2936.8,2935.6,6.81291728]
[1763573441680,0.002,2936.8,2935.6,7.26491728]
[1763573441895,0.002,2936.8,2935.6,0.452]
[1763573442188,0.002,2936.8,2935.7,0.452]
[1763573444155,0.002,2936.8,2935.9,0.90699264]
[1763573444354,0.002,2936.8,2936.0,0.452]
[1763573444782,0.002,2936.8,2936.1,0.1952]
[1763573445179,0.002,2936.8,2936.1,0.6472]
[1763573445380,0.002,2936.8,2935.6,0.452]
[1763573445381,8.4338046,2936.7,2935.6,0.452]
[1763573445583,0.84358046,2936.6,2935.6,3.85845864]
[1763573445751,0.84358046,2936.6,2935.6,0.452]
[1763573445950,0.84358046,2936.6,2935.6,3.85844823]
[1763573446182,8.4338046,2936.7,2935.6,0.452]
[1763573446355,1.40389264,2936.6,2935.1,0.452]
[1763573446702,7.9369046,2936.3,2935.1,0.452]
[1763573447049,7.9369046,2936.3,2935.1,1.35899264]
[1763573447254,0.4969,2936.5,2935.1,0.452]
[1763573447576,0.4969,2936.5,2935.2,1.19785929]
[1763573447981,0.002,2936.8,2935.3,0.452]
[1763573448297,0.002,2936.8,2935.4,6.81338148]
[1763573448464,0.002,2936.8,2935.5,0.452]
[1763573449092,0.002,2936.8,2935.5,1.35899264]
[1763573449389,0.002,2936.8,2935.6,0.42927934]
[1763573449694,0.4989,2936.8,2935.6,0.88127934]
[1763573450189,0.4989,2936.8,2935.7,0.452]
[1763573450392,0.4989,2936.8,2935.8,6.81245316]
[1763573450393,0.002,2936.8,2935.8,6.81245316]
[1763573450797,0.002,2936.8,2935.6,0.42927934]
[1763573450798,0.4989,2936.8,2935.6,0.42927934]
[1763573450970,0.4989,2936.8,2935.7,0.90699264]
[1763573451155,0.405504,2936.7,2935.4,3.85862197]
[1763573451502,0.405504,2936.7,2935.4,3.85865865]
[1763573451708,0.4969,2936.6,2935.5,0.90699264]
[1763573451858,0.4192,2935.5,2934.8,0.1923]
[1763573452065,0.4192,2935.5,2934.6,0.1952]
[1763573452066,0.1847,2935.5,2934.6,0.1952]
[1763573452402,0.1837,2935.7,2934.9,0.90699264]
[1763573452845,0.1837,2935.7,2934.8,7.26667509]
[1763573453054,0.1847,2935.9,2935.0,0.452]
[1763573453417,0.4969,2936.7,2935.1,0.22927038]
[1763573453632,0.4969,2936.7,2935.1,0.1952]
[1763573453819,0.4969,2936.7,2935.2,0.452]
[1763573454149,0.4969,2936.7,2935.3,0.405504]
[1763573454331,0.4969,2936.7,2935.4,0.452]
[1763573454507,8.33078356,2937.1,2935.5,0.38588068]
[1763573454709,0.4989,2936.8,2935.4,0.452]
[1763573455003,0.4989,2936.8,2935.5,0.452]
[1763573456353,0.4989,2936.8,2935.6,6.81291728]
[1763573456552,0.4989,2936.8,2935.7,0.452]
[1763573456755,0.002,2936.8,2935.7,0.452]
[1763573457057,0.002,2936.8,2935.8,0.76964508]
[1763573457356,0.002,2936.8,2935.9,0.452]
[1763573457854,0.002,2936.8,2936.7,0.6918]
[1763573458243,0.002,2936.8,2936.7,1.1438]
[1763573458635,0.002,2936.8,2936.7,4.54898268]
[1763573458860,0.7316,2936.8,2935.8,0.76964508]
[1763573459056,0.7316,2936.8,2935.1,0.1952]
[1763573459057,0.1847,2935.9,2935.1,4.05421752]
[1763573459247,0.1847,2935.9,2935.1,7.86667821]
[1763573459881,0.4969,2936.3,2935.2,0.452]
[1763573460131,0.405504,2936.7,2935.2,0.452]
[1763573460387,0.002,2936.8,2936.2,0.6918]
[1763573460740,0.2354,2936.3,2935.2,0.452]
[1763573460946,0.2354,2936.3,2935.1,0.1952]
[1763573461147,0.7296,2936.3,2935.1,3.60223894]
[1763573461388,0.7296,2936.3,2935.1,0.1952]
[1763573461541,0.4942,2936.2,2935.1,0.1952]
[1763573461741,0.1896,2935.2,2934.6,0.1952]
[1763573462169,0.1847,2935.2,2934.6,3.60281036]
[1763573462581,0.405504,2936.1,2934.6,3.60281036]
[1763573462582,0.4969,2936.3,2935.1,0.6918]
[1763573462846,0.4969,2936.3,2935.2,6.81384572]
[1763573463044,0.4969,2936.3,2935.1,1.1438]
[1763573463382,0.405504,2936.2,2934.7,3.40750332]
[1763573463566,0.405504,2936.2,2934.8,0.40547033]
[1763573463769,0.4969,2936.1,2934.8,0.40547033]
[1763573463946,0.405504,2936.0,2934.8,0.40547033]
[1763573464347,0.6816,2935.9,2934.8,0.40547033]
[1763573464888,0.2373,2934.9,2934.0,0.1933]
[1763573465046,0.1824,2934.8,2934.0,0.1933]
[1763573465249,0.1824,2934.8,2934.0,0.001]
[1763573465443,0.1847,2934.9,2934.0,0.001]
[1763573465770,0.4969,2934.8,2934.0,0.001]
[1763573466547,0.405504,2935.5,2934.0,0.001]
[1763573466548,8.32878356,2936.1,2934.1,0.6472]
[1763573466748,0.4969,2935.6,2934.3,10.22390346]
[1763573467145,0.4969,2935.6,2934.2,0.74648216]
[1763573467474,0.4969,2935.6,2934.3,0.452]
[1763573468191,0.6685,2935.9,2934.3,0.452]
[1763573468545,0.4838,2935.8,2934.3,0.452]
[1763573468751,1.39079264,2935.8,2934.4,6.81570338]
[1763573469062,0.1847,2935.9,2934.4,6.81570338]
[1763573469261,0.4838,2935.8,2934.4,7.27000338]
[1763573469758,0.4838,2935.8,2934.4,3.86215169]
[1763573469964,0.4838,2935.8,2934.4,3.40785169]
[1763573470273,0.4838,2935.8,2934.4,7.27000338]
[1763573470849,0.41379319,2935.8,2934.4,6.81570338]
[1763573471050,0.41379319,2935.8,2934.5,0.4543]
[1763573471706,0.1847,2935.9,2934.5,1.36129264]
[1763573472008,8.32878356,2936.6,2934.6,0.405504]
[1763573472009,0.1873,2936.1,2934.6,0.405504]
[1763573472208,0.1873,2936.1,2934.6,0.859804]
[1763573472398,0.1873,2936.1,2934.8,0.405504]
[1763573472711,8.33078356,2937.1,2934.8,0.405504]
[1763573473018,0.4858,2937.1,2936.0,0.1936]
[1763573473214,0.4858,2937.1,2936.1,0.4543]
[1763573473215,0.002,2937.1,2936.1,0.4543]
[1763573473373,0.4838,2937.0,2936.0,0.1936]
[1763573474237,0.002,2937.1,2936.0,0.6479]
[1763573474408,0.1844,2936.9,2936.0,0.6479]
[1763573474896,0.1844,2936.9,2936.1,3.40587854]
[1763573475253,0.002,2936.4,2935.6,0.1936]
[1763573475799,0.002,2936.4,2935.6,0.6479]
[1763573476518,0.4358,2936.7,2935.6,0.6479]
[1763573476721,0.1393,2935.7,2935.1,0.1936]
[1763573476928,0.4358,2936.7,2935.1,0.1936]
[1763573476929,0.90699264,2936.5,2935.1,0.1936]
[1763573477131,0.405504,2936.4,2935.1,0.6479]
[1763573477283,0.405504,2936.4,2935.1,4.05493076]
[1763573477483,0.405504,2936.4,2935.1,7.4619697]
[1763573477906,0.405504,2936.4,2935.1,0.1936]
[1763573478192,0.405504,2936.4,2935.1,3.60060147]
[1763573478390,1.36963202,2936.4,2935.2,0.70077499]
[1763573478631,0.4838,2936.3,2935.2,0.70077499]
[1763573478793,0.4838,2936.3,2934.6,0.1936]
[1763573478794,0.1393,2935.3,2934.6,0.1936]
[1763573479035,0.1847,2934.7,2933.8,0.001]
[1763573479559,1.31249664,2934.5,2933.8,0.001]
[1763573479856,0.405504,2934.3,2933.8,0.001]
[1763573480260,0.4838,2934.2,2933.8,0.001]
[1763573480816,0.405504,2934.1,2933.8,0.001]
[1763573481118,0.4838,2934.2,2933.8,0.001]
[1763573481318,0.405504,2934.6,2933.8,0.001]
[1763573482223,0.889304,2934.6,2934.0,0.001]
[1763573482538,0.405504,2934.6,2934.0,0.001]
[1763573482738,0.889304,2934.6,2934.0,0.001]
[1763573483119,0.405504,2934.6,2934.0,0.001]
[1763573483331,0.405504,2934.4,2934.0,0.001]
[1763573483536,9.2357762,2934.1,2934.0,0.001]
[1763573483716,10.15935382,2934.1,2934.0,0.001]
[1763573483946,11.04865782,2934.1,2934.0,0.001]
[1763573484174,0.405504,2933.8,2933.5,0.001]
[1763573484376,9.6412802,2933.6,2933.5,0.001]
[1763573484580,9.6412802,2933.6,2931.4,0.1936]
[1763573484581,1.31249664,2933.5,2931.4,0.1936]
[1763573484882,1.31249664,2932.6,2931.4,3.60484838]
[1763573485083,1.31249664,2932.6,2931.1,0.199]
[1763573485253,0.405504,2932.4,2931.1,3.61068844]
[1763573485652,0.405504,2932.2,2931.1,3.61068844]
[1763573485884,0.405504,2932.2,2931.1,0.199]
[1763573486087,0.4751,2932.2,2931.1,3.61064113]
[1763573486394,0.4751,2932.2,2931.0,3.41269365]
[1763573486395,0.405504,2932.1,2931.0,3.41273981]
[1763573486690,0.1393,2931.1,2931.0,0.001]
[1763573487198,1.019904,2931.1,2931.0,0.001]
[1763573487407,0.1393,2931.5,2931.0,0.001]
[1763573487565,0.4751,2932.2,2931.0,0.001]
[1763573487566,1.019904,2932.0,2931.0,0.001]
[1763573487767,1.21259366,2932.0,2931.0,0.001]
[1763573487971,0.544804,2932.0,2931.1,0.199]
[1763573488655,1.019904,2932.0,2931.0,0.001]
[1763573489579,0.405504,2931.8,2931.0,0.001]
[1763573490461,0.880604,2931.8,2931.0,0.001]
[1763573490858,0.1393,2932.0,2931.1,0.199]
[1763573491754,0.1393,2932.0,2931.1,0.6665]
[1763573491959,0.4751,2931.9,2931.0,0.001]
[1763573493072,0.405504,2931.8,2931.0,0.001]
[1763573493496,0.1393,2932.0,2931.1,0.199]
[1763573493990,0.1393,2932.0,2931.1,0.6665]
[1763573495154,0.1393,2932.0,2931.0,0.001]
[1763573495361,0.405504,2931.8,2931.0,0.001]
[1763573495786,0.4751,2931.7,2931.0,0.001]
[1763573500392,0.0742,2931.1,2931.0,0.001]
[1763573500795,0.5273,2931.1,2931.0,0.001]
[1763573502211,0.405504,2931.5,2931.0,0.001]
[1763573502411,0.405504,2931.9,2931.0,0.001]
[1763573502597,0.4531,2931.5,2931.0,0.001]
[1763573505280,0.858604,2931.9,2931.0,0.001]
[1763573505478,0.19048966,2931.8,2931.0,0.001]